Workbook

Sheet LabCircle
A2: Center a* | B2: Ang | C2: X | D2: Y | I2: 1. Open FilmStar DESIGN, load the design you need, set tolerance values | Q2: a* | R2: b* | S2: L*
A3: 52 | B3: 0 | C3: =$A$3+$A$9*COS($B3*PI()/180) -> 56 | D3: =$A$6+$A$9*SIN($B3*PI()/180) -> -47 | I3: 2. Click [Calculate] to draw scatter plot (1000 iterations, so not instant) | Q3: 54.83618546 | R3: -47.41114426 | S3: 34.79850388
B4: =$B3+2 -> 2 | C4: 55.99756331 | D4: -46.86040201 | Q4: 53.07582092 | R4: -46.52706528 | S4: 35.10757828
A5: Center b* | B5: 4 | C5: 55.9902562 | D5: -46.72097411 | Q5: 52.73802567 | R5: -47.76837158 | S5: 34.80057144
A6: -47 | B6: 6 | C6: 55.97808758 | D6: -46.58188615 | Q6: 51.22284698 | R6: -47.90885925 | S6: 34.69836807
B7: 8 | C7: 55.96107227 | D7: -46.4433076 | Q7: 53.96273804 | R7: -47.47132111 | S7: 34.88218307
A8: Radius | B8: 10 | C8: 55.93923101 | D8: -46.30540729 | Q8: 53.62742996 | R8: -47.45291519 | S8: 34.71511841
A9: 4 | B9: 12 | C9: 55.9125904 | D9: -46.16835324 | Q9: 55.98472214 | R9: -50.0154686 | S9: 34.47914886
B10: 14 | C10: 55.88118291 | D10: -46.03231242 | Q10: 55.72101593 | R10: -48.52306747 | S10: 34.88492203
B11: 16 | C11: 55.84504678 | D11: -45.89745058 | Q11: 48.88430405 | R11: -48.1052742 | S11: 34.66160583
B12: 18 | C12: 55.80422607 | D12: -45.76393202 | Q12: 52.81114578 | R12: -47.60157013 | S12: 34.86660004
A13: Yield | B13: 20 | C13: 55.75877048 | D13: -45.63191943 | Q13: 54.81186676 | R13: -47.54734039 | S13: 34.92583084
A14: 85.4% | B14: 22 | C14: 55.70873542 | D14: -45.50157363 | Q14: 52.62647629 | R14: -46.95637894 | S14: 35.01489639
B15: 24 | C15: 55.65418183 | D15: -45.37305343 | Q15: 52.99219513 | R15: -47.83552933 | S15: 34.70658493
B16: 26 | C16: 55.59517619 | D16: -45.24651541 | Q16: 48.32312393 | R16: -46.08191299 | S16: 35.08974838
B17: 28 | C17: 55.53179037 | D17: -45.12211375 | Q17: 55.46615982 | R17: -50.03282547 | S17: 34.13644409
B18: 30 | C18: 55.46410162 | D18: -45 | Q18: 53.20452118 | R18: -45.62128067 | S18: 35.5064888
B19: 32 | C19: 55.39219238 | D19: -44.88032294 | Q19: 51.62946701 | R19: -47.74386215 | S19: 34.69117355
B20: 34 | C20: 55.31615029 | D20: -44.76322839 | Q20: 48.70043564 | R20: -45.61724091 | S20: 35.28735352
B21: 36 | C21: 55.23606798 | D21: -44.64885899 | Q21: 55.5871582 | R21: -49.25872803 | S21: 34.4717865
B22: 38 | C22: 55.15204301 | D22: -44.5373541 | Q22: 50.37765121 | R22: -47.09382629 | S22: 34.79125977
B23: 40 | C23: 55.06417777 | D23: -44.42884956 | Q23: 49.174263 | R23: -44.79678345 | S23: 35.59952927
B24: 42 | C24: 54.9725793 | D24: -44.32347757 | Q24: 56.04582977 | R24: -47.72513962 | S24: 34.8421936
B25: 44 | C25: 54.8773592 | D25: -44.22136652 | Q25: 54.10424042 | R25: -47.36474609 | S25: 34.98651123
B26: 46 | C26: 54.77863348 | D26: -44.1226408 | Q26: 52.18692017 | R26: -47.65393066 | S26: 34.65231323
B27: 48 | C27: 54.67652243 | D27: -44.0274207 | Q27: 51.59833908 | R27: -44.10188293 | S27: 35.80220795
B28: 50 | C28: 54.57115044 | D28: -43.93582223 | Q28: 52.86808395 | R28: -46.88996506 | S28: 35.11713028
B29: 52 | C29: 54.4626459 | D29: -43.84795699 | Q29: 48.97150421 | R29: -43.64149475 | S29: 35.79702759
B30: 54 | C30: 54.35114101 | D30: -43.76393202 | Q30: 48.85900116 | R30: -47.65433121 | S30: 34.77004242
B31: 56 | C31: 54.23677161 | D31: -43.68384971 | Q31: 50.52415848 | R31: -44.75222397 | S31: 35.99424362
B32: 58 | C32: 54.11967706 | D32: -43.60780762 | Q32: 51.1837616 | R32: -48.33294296 | S32: 34.80002213
B33: 60 | C33: 54 | D33: -43.53589838 | Q33: 53.05425644 | R33: -45.98220062 | S33: 35.25873947
B34: 62 | C34: 53.87788625 | D34: -43.46820963 | Q34: 52.33275986 | R34: -44.31780624 | S34: 35.68959045
B35: 64 | C35: =$A$3+$A$9*COS($B35*PI()/180) -> 53.75348459 | D35: =$A$6+$A$9*SIN($B35*PI()/180) -> -43.40482381 | Q35: 50.76403809 | R35: -45.76889801 | S35: 35.11238098
B36: =$B35+2 -> 66 | C36: 53.62694657 | D36: -43.34581817 | Q36: 54.22596741 | R36: -46.48150635 | S36: 35.47285461
B37: 68 | C37: 53.49842637 | D37: -43.29126458 | Q37: 49.69274902 | R37: -43.43647766 | S37: 35.90178299
B38: 70 | C38: 53.36808057 | D38: -43.24122952 | Q38: 51.74860382 | R38: -46.10611343 | S38: 35.22260284
B39: 72 | C39: 53.23606798 | D39: -43.19577393 | Q39: 52.67551422 | R39: -47.44728851 | S39: 35.18280411
B40: 74 | C40: 53.10254942 | D40: -43.15495322 | Q40: 52.93126297 | R40: -44.76580048 | S40: 35.53340912
B41: 76 | C41: 52.96768758 | D41: -43.11881709 | Q41: 55.21987534 | R41: -45.9750824 | S41: 35.37531281
B42: 78 | C42: 52.83164676 | D42: -43.0874096 | Q42: 52.40599823 | R42: -49.4038887 | S42: 34.52302933
B43: 80 | C43: 52.69459271 | D43: -43.06076899 | Q43: 50.54408264 | R43: -43.79849243 | S43: 35.68735886
B44: 82 | C44: 52.5566924 | D44: -43.03892773 | Q44: 56.24510193 | R44: -46.84410858 | S44: 35.17442322
B45: 84 | C45: 52.41811385 | D45: -43.02191242 | Q45: 51.54338455 | R45: -48.18551636 | S45: 34.92366791
B46: 86 | C46: 52.27902589 | D46: -43.0097438 | Q46: 49.84788513 | R46: -46.81929779 | S46: 35.15787506
B47: 88 | C47: 52.13959799 | D47: -43.00243669 | Q47: 51.46311188 | R47: -48.43432236 | S47: 34.73021317
B48: 90 | C48: 52 | D48: -43 | Q48: 53.13819504 | R48: -46.97637558 | S48: 35.4076767
B49: 92 | C49: 51.86040201 | D49: -43.00243669 | Q49: 52.06610107 | R49: -45.19889832 | S49: 35.40048981
B50: 94 | C50: 51.72097411 | D50: -43.0097438 | Q50: 48.96235657 | R50: -44.71244812 | S50: 35.56267929
B51: 96 | C51: 51.58188615 | D51: -43.02191242 | Q51: 53.21301651 | R51: -45.02333832 | S51: 35.39226532
B52: 98 | C52: 51.4433076 | D52: -43.03892773 | Q52: 54.66727829 | R52: -47.50955582 | S52: 34.66729736
B53: 100 | C53: 51.30540729 | D53: -43.06076899 | Q53: 53.43695068 | R53: -45.53564072 | S53: 35.4108963
B54: 102 | C54: 51.16835324 | D54: -43.0874096 | Q54: 51.53629303 | R54: -43.8679924 | S54: 35.95650101
B55: 104 | C55: 51.03231242 | D55: -43.11881709 | Q55: 51.99611282 | R55: -44.27215958 | S55: 35.64220047
B56: 106 | C56: 50.89745058 | D56: -43.15495322 | Q56: 50.43904495 | R56: -45.11312866 | S56: 35.13982391
B57: 108 | C57: 50.76393202 | D57: -43.19577393 | Q57: 52.07441711 | R57: -47.59283829 | S57: 34.61957932
B58: 110 | C58: 50.63191943 | D58: -43.24122952 | Q58: 55.70581436 | R58: -47.30994797 | S58: 35.14196396
B59: 112 | C59: 50.50157363 | D59: -43.29126458 | Q59: 52.97468567 | R59: -48.47504425 | S59: 34.75196075
B60: 114 | C60: 50.37305343 | D60: -43.34581817 | Q60: 53.4787941 | R60: -46.50503922 | S60: 35.15579605
B61: 116 | C61: 50.24651541 | D61: -43.40482381 | Q61: 54.46076202 | R61: -44.37640762 | S61: 35.56254196
B62: 118 | C62: 50.12211375 | D62: -43.46820963 | Q62: 52.4764061 | R62: -46.1862793 | S62: 35.34054565
B63: 120 | C63: 50 | D63: -43.53589838 | Q63: 53.73553848 | R63: -46.98632431 | S63: 35.1592865
B64: 122 | C64: 49.88032294 | D64: -43.60780762 | Q64: 55.27222061 | R64: -47.39009094 | S64: 34.90617752
B65: 124 | C65: 49.76322839 | D65: -43.68384971 | Q65: 52.99693298 | R65: -45.85757446 | S65: 35.50411224
B66: 126 | C66: 49.64885899 | D66: -43.76393202 | Q66: 52.14036942 | R66: -49.68206406 | S66: 34.43501663
B67: 128 | C67: =$A$3+$A$9*COS($B67*PI()/180) -> 49.5373541 | D67: =$A$6+$A$9*SIN($B67*PI()/180) -> -43.84795699 | Q67: 52.20724487 | R67: -49.19506836 | S67: 34.37073517
B68: =$B67+2 -> 130 | C68: 49.42884956 | D68: -43.93582223 | Q68: 53.28860855 | R68: -48.26027298 | S68: 34.77529907
B69: 132 | C69: 49.32347757 | D69: -44.0274207 | Q69: 51.04321289 | R69: -47.07804871 | S69: 35.06712341
B70: 134 | C70: 49.22136652 | D70: -44.1226408 | Q70: 53.12217712 | R70: -47.82582092 | S70: 35.02136993
B71: 136 | C71: 49.1226408 | D71: -44.22136652 | Q71: 53.13214493 | R71: -48.72891998 | S71: 34.60555649
B72: 138 | C72: 49.0274207 | D72: -44.32347757 | Q72: 52.14017487 | R72: -45.53494263 | S72: 35.29521942
B73: 140 | C73: 48.93582223 | D73: -44.42884956 | Q73: 54.96679306 | R73: -44.12466812 | S73: 35.84791946
B74: 142 | C74: 48.84795699 | D74: -44.5373541 | Q74: 51.51459503 | R74: -45.6906929 | S74: 35.55412292
B75: 144 | C75: 48.76393202 | D75: -44.64885899 | Q75: 51.00876236 | R75: -48.44822693 | S75: 34.6950531
B76: 146 | C76: 48.68384971 | D76: -44.76322839 | Q76: 49.87782288 | R76: -43.97616577 | S76: 35.71554565
B77: 148 | C77: 48.60780762 | D77: -44.88032294 | Q77: 53.18985748 | R77: -44.92083359 | S77: 35.5981102
B78: 150 | C78: 48.53589838 | D78: -45 | Q78: 53.50914764 | R78: -45.43696594 | S78: 35.62154388
B79: 152 | C79: 48.46820963 | D79: -45.12211375 | Q79: 50.01395798 | R79: -46.44916153 | S79: 35.06651688
B80: 154 | C80: 48.40482381 | D80: -45.24651541 | Q80: 51.41001892 | R80: -47.49072647 | S80: 34.64573288
B81: 156 | C81: 48.34581817 | D81: -45.37305343 | Q81: 47.48622894 | R81: -47.67290878 | S81: 35.04367447
B82: 158 | C82: 48.29126458 | D82: -45.50157363 | Q82: 52.76076508 | R82: -49.30494308 | S82: 34.40588379
B83: 160 | C83: 48.24122952 | D83: -45.63191943 | Q83: 49.12506104 | R83: -46.81657028 | S83: 35.13427734
B84: 162 | C84: 48.19577393 | D84: -45.76393202 | Q84: 48.04737854 | R84: -45.78927231 | S84: 35.14325714
B85: 164 | C85: 48.15495322 | D85: -45.89745058 | Q85: 54.14715576 | R85: -50.34977341 | S85: 34.32242966
B86: 166 | C86: 48.11881709 | D86: -46.03231242 | Q86: 50.77217484 | R86: -44.18138885 | S86: 35.76369095
B87: 168 | C87: 48.0874096 | D87: -46.16835324 | Q87: 51.89415741 | R87: -46.82267761 | S87: 35.20783997
B88: 170 | C88: 48.06076899 | D88: -46.30540729 | Q88: 50.44890976 | R88: -46.3939743 | S88: 35.27263641
B89: 172 | C89: 48.03892773 | D89: -46.4433076 | Q89: 54.52227783 | R89: -44.70262527 | S89: 35.7416954
B90: 174 | C90: 48.02191242 | D90: -46.58188615 | Q90: 51.16462708 | R90: -46.71997833 | S90: 35.20057297
B91: 176 | C91: 48.0097438 | D91: -46.72097411 | Q91: 54.15380096 | R91: -48.07936096 | S91: 34.62713623
B92: 178 | C92: 48.00243669 | D92: -46.86040201 | Q92: 52.75538635 | R92: -44.33249283 | S92: 35.82670975
B93: 180 | C93: 48 | D93: -47 | Q93: 53.1374054 | R93: -50.05805969 | S93: 34.20491409
B94: 182 | C94: 48.00243669 | D94: -47.13959799 | Q94: 51.57123566 | R94: -44.86797333 | S94: 35.5606842
B95: 184 | C95: 48.0097438 | D95: -47.27902589 | Q95: 54.37165451 | R95: -50.95022964 | S95: 33.96982193
B96: 186 | C96: 48.02191242 | D96: -47.41811385 | Q96: 51.71975327 | R96: -50.39950562 | S96: 34.28447723
B97: 188 | C97: 48.03892773 | D97: -47.5566924 | Q97: 48.48341751 | R97: -46.42070007 | S97: 35.09179688
B98: 190 | C98: 48.06076899 | D98: -47.69459271 | Q98: 52.15324402 | R98: -45.07375336 | S98: 35.47951508
B99: 192 | C99: =$A$3+$A$9*COS($B99*PI()/180) -> 48.0874096 | D99: =$A$6+$A$9*SIN($B99*PI()/180) -> -47.83164676 | Q99: 50.84921265 | R99: -47.62508392 | S99: 34.92676544
B100: =$B99+2 -> 194 | C100: 48.11881709 | D100: -47.96768758 | Q100: 54.78615952 | R100: -48.82668686 | S100: 34.54961014
B101: 196 | C101: 48.15495322 | D101: -48.10254942 | Q101: 50.99097061 | R101: -45.72436905 | S101: 35.57321167
B102: 198 | C102: 48.19577393 | D102: -48.23606798 | Q102: 50.76403809 | R102: -47.62166214 | S102: 34.76710892
B103: 200 | C103: 48.24122952 | D103: -48.36808057 | Q103: 54.16300964 | R103: -47.97198868 | S103: 35.00712967
B104: 202 | C104: 48.29126458 | D104: -48.49842637 | Q104: 52.99100113 | R104: -43.08152008 | S104: 36.02063751
B105: 204 | C105: 48.34581817 | D105: -48.62694657 | Q105: 53.33261108 | R105: -46.13936615 | S105: 35.20636368
B106: 206 | C106: 48.40482381 | D106: -48.75348459 | Q106: 53.06769943 | R106: -44.44369507 | S106: 35.69665527
B107: 208 | C107: 48.46820963 | D107: -48.87788625 | Q107: 49.76940155 | R107: -47.02558517 | S107: 34.8352356
B108: 210 | C108: 48.53589838 | D108: -49 | Q108: 56.69817352 | R108: -47.07565308 | S108: 35.27144241
B109: 212 | C109: 48.60780762 | D109: -49.11967706 | Q109: 50.12975693 | R109: -47.30471802 | S109: 34.63186646
B110: 214 | C110: 48.68384971 | D110: -49.23677161 | Q110: 51.2605896 | R110: -46.25272751 | S110: 35.31034851
B111: 216 | C111: 48.76393202 | D111: -49.35114101 | Q111: 54.67973709 | R111: -49.83341217 | S111: 34.31908798
B112: 218 | C112: 48.84795699 | D112: -49.4626459 | Q112: 51.33442688 | R112: -45.31876373 | S112: 35.27549744
B113: 220 | C113: 48.93582223 | D113: -49.57115044 | Q113: 50.33616638 | R113: -45.83082962 | S113: 35.14475632
B114: 222 | C114: 49.0274207 | D114: -49.67652243 | Q114: 50.55542374 | R114: -45.95847702 | S114: 35.39064407
B115: 224 | C115: 49.1226408 | D115: -49.77863348 | Q115: 50.85536957 | R115: -42.8167572 | S115: 36.13523483
B116: 226 | C116: 49.22136652 | D116: -49.8773592 | Q116: 49.44126129 | R116: -47.1243782 | S116: 34.84352493
B117: 228 | C117: 49.32347757 | D117: -49.9725793 | Q117: 49.55387115 | R117: -44.85733414 | S117: 35.42269135
B118: 230 | C118: 49.42884956 | D118: -50.06417777 | Q118: 47.73017883 | R118: -45.9811554 | S118: 35.14894104
B119: 232 | C119: 49.5373541 | D119: -50.15204301 | Q119: 51.81138229 | R119: -45.36010742 | S119: 35.53030777
B120: 234 | C120: 49.64885899 | D120: -50.23606798 | Q120: 53.22402573 | R120: -48.06344604 | S120: 34.87966537
B121: 236 | C121: 49.76322839 | D121: -50.31615029 | Q121: 53.52108002 | R121: -48.11591339 | S121: 34.59962845
B122: 238 | C122: 49.88032294 | D122: -50.39219238 | Q122: 56.32865524 | R122: -49.53043365 | S122: 34.19480896
B123: 240 | C123: 50 | D123: -50.46410162 | Q123: 47.52373505 | R123: -44.18580627 | S123: 35.48880768
B124: 242 | C124: 50.12211375 | D124: -50.53179037 | Q124: 50.77871704 | R124: -45.23948288 | S124: 35.14654541
B125: 244 | C125: 50.24651541 | D125: -50.59517619 | Q125: 50.60084152 | R125: -46.23173904 | S125: 35.24417114
B126: 246 | C126: 50.37305343 | D126: -50.65418183 | Q126: 50.99557495 | R126: -44.51481628 | S126: 35.49596405
B127: 248 | C127: 50.50157363 | D127: -50.70873542 | Q127: 54.26449966 | R127: -49.5951004 | S127: 34.57180405
B128: 250 | C128: 50.63191943 | D128: -50.75877048 | Q128: 50.30836105 | R128: -46.07803345 | S128: 35.30456543
B129: 252 | C129: 50.76393202 | D129: -50.80422607 | Q129: 51.66788483 | R129: -47.06518173 | S129: 35.0069313
B130: 254 | C130: 50.89745058 | D130: -50.84504678 | Q130: 55.05691528 | R130: -48.41598892 | S130: 34.72929764
B131: 256 | C131: =$A$3+$A$9*COS($B131*PI()/180) -> 51.03231242 | D131: =$A$6+$A$9*SIN($B131*PI()/180) -> -50.88118291 | Q131: 55.14915466 | R131: -46.90199661 | S131: 35.07368088
B132: =$B131+2 -> 258 | C132: 51.16835324 | D132: -50.9125904 | Q132: 50.80543518 | R132: -45.23083496 | S132: 35.40090179
B133: 260 | C133: 51.30540729 | D133: -50.93923101 | Q133: 51.07703781 | R133: -42.65502548 | S133: 35.97458267
B134: 262 | C134: 51.4433076 | D134: -50.96107227 | Q134: 54.45292664 | R134: -48.87293625 | S134: 34.43422318
B135: 264 | C135: 51.58188615 | D135: -50.97808758 | Q135: 55.08756638 | R135: -47.9536171 | S135: 35.00897598
B136: 266 | C136: 51.72097411 | D136: -50.9902562 | Q136: 53.18567276 | R136: -49.34062958 | S136: 34.49658585
B137: 268 | C137: 51.86040201 | D137: -50.99756331 | Q137: 53.25228119 | R137: -48.72503281 | S137: 34.56086349
B138: 270 | C138: 52 | D138: -51 | Q138: 48.17016602 | R138: -45.87409973 | S138: 35.09243011
B139: 272 | C139: 52.13959799 | D139: -50.99756331 | Q139: 50.54763031 | R139: -45.07600021 | S139: 35.46152878
B140: 274 | C140: 52.27902589 | D140: -50.9902562 | Q140: 51.42757416 | R140: -44.21870804 | S140: 35.88940048
B141: 276 | C141: 52.41811385 | D141: -50.97808758 | Q141: 50.71041107 | R141: -48.2603302 | S141: 34.73091888
B142: 278 | C142: 52.5566924 | D142: -50.96107227 | Q142: 53.57523346 | R142: -46.82710648 | S142: 34.9573822
B143: 280 | C143: 52.69459271 | D143: -50.93923101 | Q143: 51.5382576 | R143: -48.63541031 | S143: 34.6250267
B144: 282 | C144: 52.83164676 | D144: -50.9125904 | Q144: 50.78434753 | R144: -46.05073929 | S144: 35.25544357
B145: 284 | C145: 52.96768758 | D145: -50.88118291 | Q145: 50.83291245 | R145: -44.53557205 | S145: 35.40626144
B146: 286 | C146: 53.10254942 | D146: -50.84504678 | Q146: 47.78987122 | R146: -44.2064743 | S146: 35.86752319
B147: 288 | C147: 53.23606798 | D147: -50.80422607 | Q147: 53.12229538 | R147: -46.23716354 | S147: 35.15231705
B148: 290 | C148: 53.36808057 | D148: -50.75877048 | Q148: 50.74834824 | R148: -46.12945175 | S148: 35.20424652
B149: 292 | C149: 53.49842637 | D149: -50.70873542 | Q149: 49.5620079 | R149: -48.91394424 | S149: 34.37717438
B150: 294 | C150: 53.62694657 | D150: -50.65418183 | Q150: 50.39453506 | R150: -47.15608215 | S150: 34.89257812
B151: 296 | C151: 53.75348459 | D151: -50.59517619 | Q151: 53.11344528 | R151: -48.2639122 | S151: 34.90338898
B152: 298 | C152: 53.87788625 | D152: -50.53179037 | Q152: 52.47141266 | R152: -48.86055756 | S152: 34.51159668
B153: 300 | C153: 54 | D153: -50.46410162 | Q153: 48.01413345 | R153: -44.36853027 | S153: 35.58499908
B154: 302 | C154: 54.11967706 | D154: -50.39219238 | Q154: 49.92167664 | R154: -45.96229172 | S154: 35.43593979
B155: 304 | C155: 54.23677161 | D155: -50.31615029 | Q155: 50.52767563 | R155: -45.3338089 | S155: 35.46140671
B156: 306 | C156: 54.35114101 | D156: -50.23606798 | Q156: 51.44023895 | R156: -43.80323792 | S156: 35.65715408
B157: 308 | C157: 54.4626459 | D157: -50.15204301 | Q157: 52.09699249 | R157: -45.90908432 | S157: 35.19070053
B158: 310 | C158: 54.57115044 | D158: -50.06417777 | Q158: 52.81642151 | R158: -48.29691696 | S158: 34.80309677
B159: 312 | C159: 54.67652243 | D159: -49.9725793 | Q159: 52.72033691 | R159: -50.1689682 | S159: 34.22203064
B160: 314 | C160: 54.77863348 | D160: -49.8773592 | Q160: 52.78564835 | R160: -49.54742813 | S160: 34.40027237
B161: 316 | C161: 54.8773592 | D161: -49.77863348 | Q161: 54.91705322 | R161: -49.25076294 | S161: 34.66069031
B162: 318 | C162: 54.9725793 | D162: -49.67652243 | Q162: 50.65739059 | R162: -44.78805161 | S162: 35.66519547
B163: 320 | C163: =$A$3+$A$9*COS($B163*PI()/180) -> 55.06417777 | D163: =$A$6+$A$9*SIN($B163*PI()/180) -> -49.57115044 | Q163: 53.46056747 | R163: -49.43788147 | S163: 34.63741302
B164: =$B163+2 -> 322 | C164: 55.15204301 | D164: -49.4626459 | Q164: 53.7808075 | R164: -49.09482574 | S164: 34.36022568
B165: 324 | C165: 55.23606798 | D165: -49.35114101 | Q165: 53.39741516 | R165: -45.89848328 | S165: 35.49703217
B166: 326 | C166: 55.31615029 | D166: -49.23677161 | Q166: 50.35245514 | R166: -44.61433792 | S166: 35.73277664
B167: 328 | C167: 55.39219238 | D167: -49.11967706 | Q167: 50.03783035 | R167: -47.17881775 | S167: 35.11117935
B168: 330 | C168: 55.46410162 | D168: -49 | Q168: 52.16343689 | R168: -44.60105133 | S168: 35.43024063
B169: 332 | C169: 55.53179037 | D169: -48.87788625 | Q169: 51.38336182 | R169: -47.53992081 | S169: 34.67494202
B170: 334 | C170: 55.59517619 | D170: -48.75348459 | Q170: 51.13492966 | R170: -45.75642776 | S170: 35.31337357
B171: 336 | C171: 55.65418183 | D171: -48.62694657 | Q171: 49.958004 | R171: -44.30195618 | S171: 35.75172424
B172: 338 | C172: 55.70873542 | D172: -48.49842637 | Q172: 53.91076279 | R172: -45.60316849 | S172: 35.2289772
B173: 340 | C173: 55.75877048 | D173: -48.36808057 | Q173: 53.08948517 | R173: -44.24357986 | S173: 35.7814827
B174: 342 | C174: 55.80422607 | D174: -48.23606798 | Q174: 53.52510452 | R174: -47.96658325 | S174: 34.70211792
B175: 344 | C175: 55.84504678 | D175: -48.10254942 | Q175: 51.53103256 | R175: -48.06683731 | S175: 34.74606323
B176: 346 | C176: 55.88118291 | D176: -47.96768758 | Q176: 49.56737137 | R176: -47.23743057 | S176: 34.85783386
B177: 348 | C177: 55.9125904 | D177: -47.83164676 | Q177: 55.81425095 | R177: -46.67314911 | S177: 35.09532166
B178: 350 | C178: 55.93923101 | D178: -47.69459271 | Q178: 55.08297729 | R178: -46.35839462 | S178: 35.45365906
B179: 352 | C179: 55.96107227 | D179: -47.5566924 | Q179: 47.87737274 | R179: -48.17551422 | S179: 34.52080536
B180: 354 | C180: 55.97808758 | D180: -47.41811385 | Q180: 53.93928146 | R180: -47.544384 | S180: 34.99964905
B181: 356 | C181: 55.9902562 | D181: -47.27902589 | Q181: 48.73085022 | R181: -45.14015961 | S181: 35.30032349
B182: 358 | C182: 55.99756331 | D182: -47.13959799 | Q182: 50.96502686 | R182: -45.72573471 | S182: 35.25519943
B183: 360 | C183: 56 | D183: -47 | Q183: 48.6561203 | R183: -42.63363647 | S183: 36.08149719
Q184: 51.5464859 | R184: -49.55272675 | S184: 34.38088226
Q185: 48.46533966 | R185: -44.65077972 | S185: 35.56684494
Q186: 46.94563293 | R186: -46.35060883 | S186: 34.97494888
Q187: 52.20039368 | R187: -43.10254288 | S187: 35.86184692
Q188: 51.81106949 | R188: -46.78118134 | S188: 35.03556824
Q189: 54.6457901 | R189: -47.47053909 | S189: 35.00664902
Q190: 52.50246811 | R190: -49.91924286 | S190: 34.36354446
Q191: 50.88508224 | R191: -47.68730545 | S191: 34.73121262
Q192: 55.201828 | R192: -44.62008667 | S192: 35.65296555
Q193: 53.99504471 | R193: -46.10211945 | S193: 35.41907501
Q194: 52.56319046 | R194: -47.20704651 | S194: 34.69161606
Q195: 49.53504944 | R195: -45.18811035 | S195: 35.77352524
Q196: 52.46287537 | R196: -47.48442078 | S196: 34.79001236
Q197: 55.29513931 | R197: -52.16990662 | S197: 33.8236084
Q198: 55.15901566 | R198: -48.19889832 | S198: 34.76674271
Q199: 51.48054504 | R199: -44.05341721 | S199: 35.96977615
Q200: 54.13292313 | R200: -48.95908356 | S200: 34.69153976
Q201: 52.76647186 | R201: -43.01999664 | S201: 35.9491539
... 801 more rows
